[Event "Titled Tuesday Blitz May 03 Early 2022"]
[White "Kozak, Antoni"]
[Black "Stevens, Christian"]
[WhiteFideId "21832030"]
[BlackFideId "2604450"]
[WhiteElo "2236"]
[BlackElo "2501"]
[Result "1/2-1/2"]
[Round "05"]
[TimeControl "180+1"]
[Date "2022.05.03"]
[WhiteClock "0:00:03"]
[BlackClock "0:00:02"]

1. e4 {[%clk 0:03:00]}  c5 {[%clk 0:02:52]} 2. c3 {[%clk 0:02:57]}  Nf6 {[%clk 0:02:52]} 3. e5 {[%clk 0:02:57]}  Nd5 {[%clk 0:02:51]} 4. Nf3 {[%clk 0:02:57]}  Nc6 {[%clk 0:02:50]} 5. Bc4 {[%clk 0:02:54]}  e6 {[%clk 0:02:46]} 6. O-O {[%clk 0:02:45]}  d6 {[%clk 0:02:44]} 7. d4 {[%clk 0:02:39]}  cxd4 {[%clk 0:02:33]} 8. cxd4 {[%clk 0:02:39]}  Be7 {[%clk 0:02:33]} 9. Qe2 {[%clk 0:02:26]}  O-O {[%clk 0:02:28]} 10. Nc3 {[%clk 0:02:22]}  Nxc3 {[%clk 0:02:10]} 11. bxc3 {[%clk 0:02:19]}  dxe5 {[%clk 0:01:54]} 12. dxe5 {[%clk 0:02:07]}  Qc7 {[%clk 0:01:32]} 13. Bd3 {[%clk 0:01:58]}  Bd7 {[%clk 0:01:29]} 14. Qe4 {[%clk 0:01:54]}  g6 {[%clk 0:01:28]} 15. Be3 {[%clk 0:01:36]}  Rfd8 {[%clk 0:01:10]} 16. h4 {[%clk 0:01:35]}  Be8 {[%clk 0:01:10]} 17. Bg5 {[%clk 0:01:16]}  Bxg5 {[%clk 0:01:03]} 18. hxg5 {[%clk 0:01:15]}  Rd5 {[%clk 0:00:57]} 19. Rfe1 {[%clk 0:01:04]}  Rad8 {[%clk 0:00:54]} 20. Bf1 {[%clk 0:01:02]}  Ne7 {[%clk 0:00:38]} 21. c4 {[%clk 0:00:57]}  Rc5 {[%clk 0:00:35]} 22. Nd4 {[%clk 0:00:37]}  Nc6 {[%clk 0:00:26]} 23. Nb5 {[%clk 0:00:35]}  Qxe5 {[%clk 0:00:25]} 24. Qxe5 {[%clk 0:00:18]}  Nxe5 {[%clk 0:00:24]} 25. Rad1 {[%clk 0:00:17]}  Rxd1 {[%clk 0:00:20]} 26. Rxd1 {[%clk 0:00:18]}  Nxc4 {[%clk 0:00:20]} 27. Bxc4 {[%clk 0:00:17]}  Bxb5 {[%clk 0:00:18]} 28. Rd8+ {[%clk 0:00:15]}  Kg7 {[%clk 0:00:18]} 29. Bb3 {[%clk 0:00:15]}  Rxg5 {[%clk 0:00:17]} 30. f3 {[%clk 0:00:15]}  Rc5 {[%clk 0:00:14]} 31. Kf2 {[%clk 0:00:16]}  Bc6 {[%clk 0:00:14]} 32. Rc8 {[%clk 0:00:15]}  a5 {[%clk 0:00:14]} 33. Rc7 {[%clk 0:00:15]}  Rc3 {[%clk 0:00:12]} 34. Bxe6 {[%clk 0:00:14]}  Rc2+ {[%clk 0:00:11]} 35. Kg3 {[%clk 0:00:14]}  Kf6 {[%clk 0:00:09]} 36. Bxf7 {[%clk 0:00:12]}  h5 {[%clk 0:00:09]} 37. Bb3 {[%clk 0:00:12]}  Rc3 {[%clk 0:00:09]} 38. Rf7+ {[%clk 0:00:08]}  Kg5 {[%clk 0:00:09]} 39. Rc7 {[%clk 0:00:05]}  h4+ {[%clk 0:00:09]} 40. Kf2 {[%clk 0:00:05]}  b5 {[%clk 0:00:08]} 41. Bd5 {[%clk 0:00:04]}  Rc2+ {[%clk 0:00:08]} 42. Ke3 {[%clk 0:00:04]}  Rc3+ {[%clk 0:00:05]} 43. Kd2 {[%clk 0:00:04]}  Bxd5 {[%clk 0:00:05]} 44. Rxc3 {[%clk 0:00:04]}  Bxa2 {[%clk 0:00:05]} 45. Rc5+ {[%clk 0:00:05]}  Kf4 {[%clk 0:00:05]} 46. Rxb5 {[%clk 0:00:05]}  Bc4 {[%clk 0:00:06]} 47. Rxa5 {[%clk 0:00:05]}  Bf1 {[%clk 0:00:07]} 48. Ke1 {[%clk 0:00:05]}  Bxg2 {[%clk 0:00:06]} 49. Kf2 {[%clk 0:00:05]}  Bxf3 {[%clk 0:00:06]} 50. Ra4+ {[%clk 0:00:06]}  Be4 {[%clk 0:00:06]} 51. Ra6 {[%clk 0:00:06]}  g5 {[%clk 0:00:06]} 52. Rf6+ {[%clk 0:00:07]}  Bf5 {[%clk 0:00:06]} 53. Ra6 {[%clk 0:00:05]}  g4 {[%clk 0:00:07]} 54. Ra4+ {[%clk 0:00:05]}  Be4 {[%clk 0:00:07]} 55. Kg1 {[%clk 0:00:05]}  g3 {[%clk 0:00:06]} 56. Ra2 {[%clk 0:00:05]}  h3 {[%clk 0:00:06]} 57. Rd2 {[%clk 0:00:05]}  Ke3 {[%clk 0:00:06]} 58. Ra2 {[%clk 0:00:05]}  Bd3 {[%clk 0:00:06]} 59. Rb2 {[%clk 0:00:05]}  Kf3 {[%clk 0:00:05]} 60. Rb3 {[%clk 0:00:02]}  Ke3 {[%clk 0:00:05]} 61. Rb2 {[%clk 0:00:02]}  Kd4 {[%clk 0:00:04]} 62. Ra2 {[%clk 0:00:02]}  h2+ {[%clk 0:00:03]} 63. Rxh2 {[%clk 0:00:02]}  gxh2+ {[%clk 0:00:02]} 64. Kxh2 {[%clk 0:00:03]} 1/2-1/2


[Site "https://www.chess.com"]

[Event "Titled Tuesday Blitz May 03 Early 2022"]
[White "Lamaze, Simon"]
[Black "Ezat, Mohamed"]
[WhiteFideId "36069264"]
[BlackFideId "10600906"]
[WhiteElo "1999"]
[BlackElo "2386"]
[Result "1/2-1/2"]
[Round "05"]
[TimeControl "180+1"]
[Date "2022.05.03"]
[WhiteClock "0:00:26"]
[BlackClock "0:00:09"]

1. d4 {[%clk 0:03:00]}  Nf6 {[%clk 0:02:59]} 2. Bf4 {[%clk 0:02:59]}  d5 {[%clk 0:02:59]} 3. e3 {[%clk 0:02:59]}  c5 {[%clk 0:02:59]} 4. c3 {[%clk 0:02:59]}  Nc6 {[%clk 0:02:59]} 5. Nf3 {[%clk 0:03:00]}  Bg4 {[%clk 0:02:58]} 6. Nbd2 {[%clk 0:02:59]}  e6 {[%clk 0:02:57]} 7. Be2 {[%clk 0:02:58]}  Bd6 {[%clk 0:02:54]} 8. dxc5 {[%clk 0:02:50]}  Bxc5 {[%clk 0:02:50]} 9. h3 {[%clk 0:02:48]}  Bh5 {[%clk 0:02:49]} 10. O-O {[%clk 0:02:49]}  O-O {[%clk 0:02:48]} 11. Bh2 {[%clk 0:02:49]}  Bd6 {[%clk 0:02:46]} 12. Bxd6 {[%clk 0:02:39]}  Qxd6 {[%clk 0:02:45]} 13. c4 {[%clk 0:02:40]}  Rfd8 {[%clk 0:02:40]} 14. cxd5 {[%clk 0:02:34]}  Qxd5 {[%clk 0:02:38]} 15. Nb3 {[%clk 0:02:33]}  Qe4 {[%clk 0:02:24]} 16. Qb1 {[%clk 0:02:27]}  Qb4 {[%clk 0:02:08]} 17. Qe1 {[%clk 0:02:22]}  Qb6 {[%clk 0:02:06]} 18. Rc1 {[%clk 0:02:12]}  a5 {[%clk 0:02:02]} 19. Nfd4 {[%clk 0:01:56]}  Bg6 {[%clk 0:01:46]} 20. Nxc6 {[%clk 0:01:51]}  bxc6 {[%clk 0:01:46]} 21. Nd4 {[%clk 0:01:48]}  c5 {[%clk 0:01:43]} 22. Nb3 {[%clk 0:01:47]}  a4 {[%clk 0:01:41]} 23. Nxc5 {[%clk 0:01:46]}  Qxb2 {[%clk 0:01:41]} 24. Bf3 {[%clk 0:01:41]}  Nd5 {[%clk 0:01:28]} 25. Bxd5 {[%clk 0:01:35]}  Rxd5 {[%clk 0:01:27]} 26. e4 {[%clk 0:01:35]}  Rdd8 {[%clk 0:01:21]} 27. f4 {[%clk 0:01:30]}  Rd2 {[%clk 0:01:04]} 28. Qg3 {[%clk 0:01:22]}  Qd4+ {[%clk 0:01:04]} 29. Kh2 {[%clk 0:01:09]}  Bxe4 {[%clk 0:00:58]} 30. Nxe4 {[%clk 0:01:09]}  Qxe4 {[%clk 0:00:58]} 31. Rf2 {[%clk 0:01:04]}  Rxf2 {[%clk 0:00:53]} 32. Qxf2 {[%clk 0:01:04]}  h6 {[%clk 0:00:53]} 33. Rc7 {[%clk 0:01:00]}  a3 {[%clk 0:00:49]} 34. Qd2 {[%clk 0:00:58]}  Rb8 {[%clk 0:00:47]} 35. Rc2 {[%clk 0:00:38]}  Rb4 {[%clk 0:00:41]} 36. g3 {[%clk 0:00:38]}  Rb1 {[%clk 0:00:37]} 37. g4 {[%clk 0:00:30]}  Rh1+ {[%clk 0:00:34]} 38. Kg3 {[%clk 0:00:29]}  Rg1+ {[%clk 0:00:34]} 39. Kh4 {[%clk 0:00:26]}  Kh7 {[%clk 0:00:24]} 40. Rc3 {[%clk 0:00:21]}  Rh1 {[%clk 0:00:17]} 41. Qc2 {[%clk 0:00:18]}  Qxc2 {[%clk 0:00:16]} 42. Rxc2 {[%clk 0:00:19]}  Ra1 {[%clk 0:00:16]} 43. Kg3 {[%clk 0:00:20]}  f6 {[%clk 0:00:14]} 44. Kf3 {[%clk 0:00:20]}  Kg6 {[%clk 0:00:14]} 45. Ke4 {[%clk 0:00:21]}  f5+ {[%clk 0:00:13]} 46. Ke5 {[%clk 0:00:20]}  Re1+ {[%clk 0:00:11]} 47. Kd6 {[%clk 0:00:20]}  fxg4 {[%clk 0:00:12]} 48. hxg4 {[%clk 0:00:21]}  Re4 {[%clk 0:00:12]} 49. Rf2 {[%clk 0:00:20]}  Kf6 {[%clk 0:00:11]} 50. Kc5 {[%clk 0:00:20]}  Re1 {[%clk 0:00:10]} 51. Kb4 {[%clk 0:00:20]}  Re4+ {[%clk 0:00:10]} 52. Kxa3 {[%clk 0:00:20]}  g5 {[%clk 0:00:11]} 53. fxg5+ {[%clk 0:00:20]}  Kxg5 {[%clk 0:00:12]} 54. Rh2 {[%clk 0:00:19]}  Rxg4 {[%clk 0:00:12]} 55. Kb3 {[%clk 0:00:19]}  h5 {[%clk 0:00:12]} 56. a3 {[%clk 0:00:19]}  h4 {[%clk 0:00:13]} 57. a4 {[%clk 0:00:19]}  Rg3+ {[%clk 0:00:13]} 58. Kb4 {[%clk 0:00:19]}  Rg1 {[%clk 0:00:14]} 59. a5 {[%clk 0:00:19]}  Rb1+ {[%clk 0:00:14]} 60. Ka3 {[%clk 0:00:19]}  Ra1+ {[%clk 0:00:14]} 61. Kb4 {[%clk 0:00:19]}  Kg4 {[%clk 0:00:14]} 62. Rg2+ {[%clk 0:00:20]}  Kf3 {[%clk 0:00:14]} 63. Rg6 {[%clk 0:00:20]}  h3 {[%clk 0:00:14]} 64. Rf6+ {[%clk 0:00:21]}  Kg2 {[%clk 0:00:13]} 65. Rxe6 {[%clk 0:00:21]}  h2 {[%clk 0:00:13]} 66. Rg6+ {[%clk 0:00:22]}  Kf3 {[%clk 0:00:13]} 67. Rh6 {[%clk 0:00:22]}  h1=Q {[%clk 0:00:09]} 68. Rxh1 {[%clk 0:00:23]}  Rxh1 {[%clk 0:00:09]} 69. a6 {[%clk 0:00:23]}  Ra1 {[%clk 0:00:09]} 70. Kb5 {[%clk 0:00:23]}  Ke4 {[%clk 0:00:09]} 71. Kb6 {[%clk 0:00:24]}  Kd5 {[%clk 0:00:10]} 72. a7 {[%clk 0:00:24]}  Rb1+ {[%clk 0:00:10]} 73. Kc7 {[%clk 0:00:24]}  Rc1+ {[%clk 0:00:11]} 74. Kb7 {[%clk 0:00:25]}  Rb1+ {[%clk 0:00:10]} 75. Kc7 {[%clk 0:00:25]}  Ra1 {[%clk 0:00:10]} 76. Kb7 {[%clk 0:00:25]}  Kd6 {[%clk 0:00:10]} 77. a8=Q {[%clk 0:00:25]}  Rxa8 {[%clk 0:00:09]} 78. Kxa8 {[%clk 0:00:26]} 1/2-1/2


[Site "https://www.chess.com"]

[Event "Titled Tuesday Blitz May 03 Early 2022"]
[White "Le, Tuan Minh"]
[Black "Kamsky, Gata"]
[WhiteFideId "12401153"]
[BlackFideId "2000024"]
[WhiteElo "2450"]
[BlackElo "2645"]
[Result "1-0"]
[Round "05"]
[TimeControl "180+1"]
[Date "2022.05.03"]
[WhiteClock "0:00:06"]
[BlackClock "0:00:02"]

1. d4 {[%clk 0:03:00]}  Nf6 {[%clk 0:02:35]} 2. Nf3 {[%clk 0:03:00]}  e6 {[%clk 0:02:34]} 3. Bf4 {[%clk 0:03:00]}  c5 {[%clk 0:02:31]} 4. c3 {[%clk 0:03:00]}  b6 {[%clk 0:02:25]} 5. e3 {[%clk 0:03:00]}  Be7 {[%clk 0:02:25]} 6. Bd3 {[%clk 0:03:00]}  Ba6 {[%clk 0:02:23]} 7. Bxa6 {[%clk 0:02:49]}  Nxa6 {[%clk 0:02:23]} 8. O-O {[%clk 0:02:50]}  O-O {[%clk 0:02:22]} 9. Qd3 {[%clk 0:02:45]}  Qc8 {[%clk 0:02:18]} 10. Bg5 {[%clk 0:02:38]}  Nc7 {[%clk 0:02:11]} 11. e4 {[%clk 0:02:22]}  h6 {[%clk 0:02:01]} 12. Bh4 {[%clk 0:02:21]}  Re8 {[%clk 0:01:58]} 13. Re1 {[%clk 0:02:08]}  cxd4 {[%clk 0:01:54]} 14. cxd4 {[%clk 0:02:08]}  Qa6 {[%clk 0:01:55]} 15. Qb3 {[%clk 0:01:49]}  b5 {[%clk 0:01:39]} 16. Bg3 {[%clk 0:01:36]}  Rac8 {[%clk 0:01:35]} 17. a4 {[%clk 0:01:31]}  d5 {[%clk 0:01:30]} 18. Nc3 {[%clk 0:01:07]}  b4 {[%clk 0:01:16]} 19. Nb5 {[%clk 0:01:03]}  Nxb5 {[%clk 0:01:15]} 20. axb5 {[%clk 0:01:04]}  Qxb5 {[%clk 0:01:14]} 21. e5 {[%clk 0:00:57]}  Ne4 {[%clk 0:01:14]} 22. Rxa7 {[%clk 0:00:57]}  Qc4 {[%clk 0:00:59]} 23. Qa4 {[%clk 0:00:57]}  b3 {[%clk 0:00:58]} 24. Qxc4 {[%clk 0:00:43]}  Rxc4 {[%clk 0:00:57]} 25. Rb7 {[%clk 0:00:36]}  Bb4 {[%clk 0:00:53]} 26. Ra1 {[%clk 0:00:36]}  Rec8 {[%clk 0:00:52]} 27. Bf4 {[%clk 0:00:36]}  g5 {[%clk 0:00:50]} 28. Be3 {[%clk 0:00:36]}  g4 {[%clk 0:00:45]} 29. Ne1 {[%clk 0:00:35]}  Bd2 {[%clk 0:00:29]} 30. Nd3 {[%clk 0:00:36]}  Bxe3 {[%clk 0:00:28]} 31. fxe3 {[%clk 0:00:37]}  Rc2 {[%clk 0:00:28]} 32. Rxb3 {[%clk 0:00:15]}  Nd2 {[%clk 0:00:23]} 33. Rb7 {[%clk 0:00:12]}  Nc4 {[%clk 0:00:23]} 34. Rf1 {[%clk 0:00:12]}  Rf8 {[%clk 0:00:21]} 35. Re1 {[%clk 0:00:12]}  Rd2 {[%clk 0:00:19]} 36. Nf4 {[%clk 0:00:12]}  Rxb2 {[%clk 0:00:18]} 37. Rxb2 {[%clk 0:00:12]}  Nxb2 {[%clk 0:00:18]} 38. Nh5 {[%clk 0:00:13]}  Rc8 {[%clk 0:00:17]} 39. Nf6+ {[%clk 0:00:13]}  Kg7 {[%clk 0:00:17]} 40. Nxg4 {[%clk 0:00:13]}  Rc2 {[%clk 0:00:17]} 41. h3 {[%clk 0:00:13]}  Nc4 {[%clk 0:00:17]} 42. Nf6 {[%clk 0:00:11]}  Nd2 {[%clk 0:00:15]} 43. Nh5+ {[%clk 0:00:10]}  Kg6 {[%clk 0:00:14]} 44. Ng3 {[%clk 0:00:10]}  h5 {[%clk 0:00:13]} 45. h4 {[%clk 0:00:08]}  Ne4 {[%clk 0:00:11]} 46. Nxe4 {[%clk 0:00:06]}  dxe4 {[%clk 0:00:12]} 47. Kh2 {[%clk 0:00:07]}  f6 {[%clk 0:00:09]} 48. exf6 {[%clk 0:00:06]}  Kxf6 {[%clk 0:00:09]} 49. Rf1+ {[%clk 0:00:06]}  Kg6 {[%clk 0:00:05]} 50. Rf4 {[%clk 0:00:07]}  e5 {[%clk 0:00:05]} 51. dxe5 {[%clk 0:00:07]}  Rc3 {[%clk 0:00:05]} 52. e6 {[%clk 0:00:06]}  Rc7 {[%clk 0:00:03]} 53. Rxe4 {[%clk 0:00:05]}  Re7 {[%clk 0:00:04]} 54. Re5 {[%clk 0:00:06]}  Kf6 {[%clk 0:00:02]} 55. Rxh5 {[%clk 0:00:06]} 1-0


[Site "https://www.chess.com"]

[Event "Titled Tuesday Blitz May 03 Early 2022"]
[White "Liyanage, Ranindu Dilshan"]
[Black "Abarca Gonzalez, Nicolas"]
[WhiteFideId "9915834"]
[BlackFideId "3409422"]
[WhiteElo "1858"]
[BlackElo "2504"]
[Result "0-1"]
[Round "05"]
[TimeControl "180+1"]
[Date "2022.05.03"]
[WhiteClock "0:00:31"]
[BlackClock "0:00:41"]

1. e4 {[%clk 0:03:00]}  c5 {[%clk 0:02:07]} 2. Nf3 {[%clk 0:03:00]}  d6 {[%clk 0:02:07]} 3. d4 {[%clk 0:03:01]}  cxd4 {[%clk 0:02:08]} 4. Nxd4 {[%clk 0:03:01]}  Nf6 {[%clk 0:02:08]} 5. Nc3 {[%clk 0:03:02]}  g6 {[%clk 0:02:09]} 6. h3 {[%clk 0:03:02]}  Bg7 {[%clk 0:02:08]} 7. g4 {[%clk 0:03:02]}  Nc6 {[%clk 0:01:51]} 8. Be3 {[%clk 0:03:02]}  O-O {[%clk 0:01:47]} 9. Bg2 {[%clk 0:03:01]}  Nxd4 {[%clk 0:01:36]} 10. Bxd4 {[%clk 0:03:00]}  Be6 {[%clk 0:01:37]} 11. O-O {[%clk 0:03:00]}  Qa5 {[%clk 0:01:37]} 12. Qd2 {[%clk 0:02:56]}  Rfd8 {[%clk 0:01:27]} 13. Rad1 {[%clk 0:02:30]}  Rac8 {[%clk 0:01:27]} 14. Rfe1 {[%clk 0:02:23]}  Rc4 {[%clk 0:01:24]} 15. Bf1 {[%clk 0:01:57]}  Rxd4 {[%clk 0:01:21]} 16. Qxd4 {[%clk 0:01:58]}  Nxg4 {[%clk 0:01:20]} 17. Qd2 {[%clk 0:01:58]}  Ne5 {[%clk 0:01:19]} 18. Qe3 {[%clk 0:01:50]}  Rc8 {[%clk 0:01:14]} 19. f4 {[%clk 0:01:31]}  Nc4 {[%clk 0:01:12]} 20. Bxc4 {[%clk 0:01:31]}  Rxc4 {[%clk 0:01:10]} 21. Rd3 {[%clk 0:01:15]}  Qh5 {[%clk 0:01:06]} 22. Qe2 {[%clk 0:00:41]}  Qh4 {[%clk 0:01:04]} 23. Qf2 {[%clk 0:00:41]}  Bd4 {[%clk 0:00:57]} 24. Rxd4 {[%clk 0:00:34]}  Qxf2+ {[%clk 0:00:57]} 25. Kxf2 {[%clk 0:00:35]}  Rxd4 {[%clk 0:00:58]} 26. b3 {[%clk 0:00:33]}  Rd2+ {[%clk 0:00:55]} 27. Re2 {[%clk 0:00:33]}  Rxe2+ {[%clk 0:00:55]} 28. Kxe2 {[%clk 0:00:33]}  Bxh3 {[%clk 0:00:56]} 29. Nd5 {[%clk 0:00:32]}  Kf8 {[%clk 0:00:53]} 30. Kf3 {[%clk 0:00:32]}  Be6 {[%clk 0:00:49]} 31. Ne3 {[%clk 0:00:31]}  h5 {[%clk 0:00:48]} 32. f5 {[%clk 0:00:31]}  Bd7 {[%clk 0:00:47]} 33. Kf4 {[%clk 0:00:31]}  Kg7 {[%clk 0:00:44]} 34. Kg5 {[%clk 0:00:31]}  f6+ {[%clk 0:00:42]} 35. Kh4 {[%clk 0:00:32]}  Bc6 {[%clk 0:00:41]} 36. fxg6 {[%clk 0:00:30]}  Bxe4 {[%clk 0:00:41]} 37. Nf5+ {[%clk 0:00:31]}  Bxf5 {[%clk 0:00:41]} 0-1


[Site "https://www.chess.com"]

[Event "Titled Tuesday Blitz May 03 Early 2022"]
[White "Lohani, Sujana"]
[Black "Melikhov, Evgeny V."]
[WhiteFideId "12311987"]
[BlackFideId "4122046"]
[WhiteElo "1691"]
[BlackElo "1931"]
[Result "0-1"]
[Round "05"]
[TimeControl "180+1"]
[Date "2022.05.03"]
[WhiteClock "0:00:01"]
[BlackClock "0:00:11"]

1. d4 {[%clk 0:02:32]}  Nf6 {[%clk 0:02:59]} 2. c4 {[%clk 0:02:29]}  e6 {[%clk 0:02:59]} 3. Nc3 {[%clk 0:02:22]}  Bb4 {[%clk 0:02:58]} 4. e4 {[%clk 0:02:21]}  Nxe4 {[%clk 0:02:51]} 5. Qc2 {[%clk 0:02:15]}  Nxc3 {[%clk 0:02:49]} 6. bxc3 {[%clk 0:02:14]}  Be7 {[%clk 0:02:49]} 7. Bd3 {[%clk 0:02:14]}  f5 {[%clk 0:02:43]} 8. Rb1 {[%clk 0:02:13]}  O-O {[%clk 0:02:40]} 9. f4 {[%clk 0:02:10]}  d6 {[%clk 0:02:35]} 10. Nf3 {[%clk 0:02:08]}  Nd7 {[%clk 0:02:34]} 11. O-O {[%clk 0:01:55]}  Nf6 {[%clk 0:02:33]} 12. Re1 {[%clk 0:01:55]}  h6 {[%clk 0:02:28]} 13. h3 {[%clk 0:01:51]}  Qe8 {[%clk 0:02:22]} 14. d5 {[%clk 0:01:45]}  Qf7 {[%clk 0:02:16]} 15. dxe6 {[%clk 0:01:39]}  Bxe6 {[%clk 0:02:15]} 16. Rxb7 {[%clk 0:01:32]}  Ne4 {[%clk 0:02:08]} 17. Bxe4 {[%clk 0:01:30]}  fxe4 {[%clk 0:02:08]} 18. Qxe4 {[%clk 0:01:29]}  Bh4 {[%clk 0:01:24]} 19. Nxh4 {[%clk 0:01:20]}  Bxc4 {[%clk 0:01:24]} 20. Qe7 {[%clk 0:01:08]}  Rac8 {[%clk 0:01:10]} 21. Qxf7+ {[%clk 0:01:01]}  Rxf7 {[%clk 0:01:09]} 22. Ng6 {[%clk 0:00:58]}  Kh7 {[%clk 0:01:02]} 23. Re7 {[%clk 0:00:53]}  Kxg6 {[%clk 0:00:58]} 24. Rxf7 {[%clk 0:00:52]}  Kxf7 {[%clk 0:00:57]} 25. Rxa7 {[%clk 0:00:53]}  Ke6 {[%clk 0:00:55]} 26. a4 {[%clk 0:00:49]}  Kd7 {[%clk 0:00:53]} 27. Be3 {[%clk 0:00:42]}  Rb8 {[%clk 0:00:53]} 28. Bd4 {[%clk 0:00:41]}  g6 {[%clk 0:00:52]} 29. a5 {[%clk 0:00:38]}  Kc6 {[%clk 0:00:47]} 30. Kf2 {[%clk 0:00:33]}  Rb2+ {[%clk 0:00:46]} 31. Kg3 {[%clk 0:00:32]}  Bd5 {[%clk 0:00:38]} 32. Bf2 {[%clk 0:00:29]}  h5 {[%clk 0:00:37]} 33. h4 {[%clk 0:00:26]}  Rc2 {[%clk 0:00:34]} 34. Ra8 {[%clk 0:00:17]}  Rxc3+ {[%clk 0:00:34]} 35. Kh2 {[%clk 0:00:18]}  Rc2 {[%clk 0:00:33]} 36. Kg1 {[%clk 0:00:18]}  Ra2 {[%clk 0:00:25]} 37. a6 {[%clk 0:00:17]}  Kd7 {[%clk 0:00:22]} 38. Ra7 {[%clk 0:00:16]}  Ke6 {[%clk 0:00:16]} 39. g3 {[%clk 0:00:15]}  c5 {[%clk 0:00:14]} 40. Rg7 {[%clk 0:00:11]}  Kf5 {[%clk 0:00:14]} 41. a7 {[%clk 0:00:10]}  Kg4 {[%clk 0:00:14]} 42. Rd7 {[%clk 0:00:08]}  Ra1+ {[%clk 0:00:14]} 43. Be1 {[%clk 0:00:05]}  Rxe1+ {[%clk 0:00:14]} 44. Kf2 {[%clk 0:00:06]}  Ra1 {[%clk 0:00:13]} 45. Rxd6 {[%clk 0:00:05]}  Be4 {[%clk 0:00:14]} 46. Re6 {[%clk 0:00:02]}  Bf5 {[%clk 0:00:12]} 47. Re7 {[%clk 0:00:01]}  c4 {[%clk 0:00:11]} 0-1


[Site "https://www.chess.com"]

[Event "Titled Tuesday Blitz May 03 Early 2022"]
[White "Manon, Reja Neer"]
[Black "Reprintsev, Alexander"]
[WhiteFideId "10224009"]
[BlackFideId "14100541"]
[WhiteElo "1911"]
[BlackElo "2108"]
[Result "0-1"]
[Round "05"]
[TimeControl "180+1"]
[Date "2022.05.03"]
[WhiteClock "0:00:02"]
[BlackClock "0:00:04"]

1. e4 {[%clk 0:03:00]}  d5 {[%clk 0:02:53]} 2. exd5 {[%clk 0:03:00]}  Qxd5 {[%clk 0:02:52]} 3. Nc3 {[%clk 0:02:59]}  Qa5 {[%clk 0:02:52]} 4. d4 {[%clk 0:02:59]}  Nf6 {[%clk 0:02:52]} 5. Bc4 {[%clk 0:02:56]}  Bg4 {[%clk 0:02:51]} 6. f3 {[%clk 0:02:55]}  Be6 {[%clk 0:02:51]} 7. Bxe6 {[%clk 0:02:53]}  fxe6 {[%clk 0:02:52]} 8. Ne2 {[%clk 0:02:38]}  Nc6 {[%clk 0:02:51]} 9. Bd2 {[%clk 0:02:28]}  O-O-O {[%clk 0:02:50]} 10. Ne4 {[%clk 0:02:15]}  Qb6 {[%clk 0:02:48]} 11. c3 {[%clk 0:02:12]}  Nxe4 {[%clk 0:02:42]} 12. fxe4 {[%clk 0:02:11]}  Qxb2 {[%clk 0:02:39]} 13. Nf4 {[%clk 0:01:59]}  e5 {[%clk 0:02:37]} 14. Ne6 {[%clk 0:01:59]}  Rd6 {[%clk 0:02:36]} 15. d5 {[%clk 0:01:57]}  Nd8 {[%clk 0:02:36]} 16. Nc5 {[%clk 0:01:34]}  Qb5 {[%clk 0:02:27]} 17. Be3 {[%clk 0:01:28]}  b6 {[%clk 0:02:13]} 18. Rb1 {[%clk 0:01:13]}  Qc4 {[%clk 0:02:11]} 19. Qg4+ {[%clk 0:01:12]}  e6 {[%clk 0:02:05]} 20. Nb3 {[%clk 0:01:06]}  Rxd5 {[%clk 0:01:39]} 21. Nd2 {[%clk 0:00:52]}  Qxc3 {[%clk 0:01:38]} 22. exd5 {[%clk 0:00:46]}  Qxe3+ {[%clk 0:01:38]} 23. Kd1 {[%clk 0:00:43]}  h5 {[%clk 0:01:28]} 24. Qf3 {[%clk 0:00:33]}  Qxf3+ {[%clk 0:01:27]} 25. Nxf3 {[%clk 0:00:34]}  exd5 {[%clk 0:01:25]} 26. Nxe5 {[%clk 0:00:34]}  Bd6 {[%clk 0:01:25]} 27. Ng6 {[%clk 0:00:32]}  Re8 {[%clk 0:01:24]} 28. g3 {[%clk 0:00:30]}  Re6 {[%clk 0:01:20]} 29. Nh4 {[%clk 0:00:30]}  g5 {[%clk 0:01:16]} 30. Nf3 {[%clk 0:00:29]}  g4 {[%clk 0:01:16]} 31. Nd4 {[%clk 0:00:22]}  Re4 {[%clk 0:01:16]} 32. Ne2 {[%clk 0:00:22]}  Ra4 {[%clk 0:01:15]} 33. Nc3 {[%clk 0:00:20]}  Rc4 {[%clk 0:01:13]} 34. Kd2 {[%clk 0:00:19]}  d4 {[%clk 0:01:13]} 35. Nb5 {[%clk 0:00:18]}  Kd7 {[%clk 0:01:02]} 36. Kd3 {[%clk 0:00:18]}  Ra4 {[%clk 0:01:01]} 37. Nxd4 {[%clk 0:00:17]}  Rxa2 {[%clk 0:00:58]} 38. Ra1 {[%clk 0:00:17]}  Rxa1 {[%clk 0:00:54]} 39. Rxa1 {[%clk 0:00:18]}  a5 {[%clk 0:00:55]} 40. Rf1 {[%clk 0:00:18]}  c5 {[%clk 0:00:48]} 41. Nc2 {[%clk 0:00:17]}  Ke6 {[%clk 0:00:43]} 42. Kc4 {[%clk 0:00:17]}  Bc7 {[%clk 0:00:35]} 43. Kb5 {[%clk 0:00:17]}  Nf7 {[%clk 0:00:30]} 44. Re1+ {[%clk 0:00:17]}  Kd7 {[%clk 0:00:28]} 45. Ne3 {[%clk 0:00:14]}  Nd6+ {[%clk 0:00:28]} 46. Ka6 {[%clk 0:00:14]}  a4 {[%clk 0:00:28]} 47. Nd5 {[%clk 0:00:14]}  a3 {[%clk 0:00:25]} 48. Nxb6+ {[%clk 0:00:14]}  Kc6 {[%clk 0:00:24]} 49. Na4 {[%clk 0:00:13]}  Nc4 {[%clk 0:00:14]} 50. Rc1 {[%clk 0:00:10]}  Kd5 {[%clk 0:00:13]} 51. Nc3+ {[%clk 0:00:05]}  Kc6 {[%clk 0:00:12]} 52. Ne4 {[%clk 0:00:04]}  Kd5 {[%clk 0:00:09]} 53. Nc3+ {[%clk 0:00:04]}  Kc6 {[%clk 0:00:08]} 54. Na2 {[%clk 0:00:01]}  Ne3 {[%clk 0:00:07]} 55. Nc3 {[%clk 0:00:02]}  Be5 {[%clk 0:00:06]} 56. Na2 {[%clk 0:00:02]}  Bb2 {[%clk 0:00:06]} 57. Nb4+ {[%clk 0:00:03]}  Kd6 {[%clk 0:00:06]} 58. Rc4 {[%clk 0:00:01]}  cxb4 {[%clk 0:00:05]} 59. Rc6+ {[%clk 0:00:02]}  Kxc6 {[%clk 0:00:04]} 0-1


[Site "https://www.chess.com"]